Cogmind - Beta 13 @@@ ROGUE MODE // 2024.05.22 @ 17:26:19 Player: arkn Result: Destroyed by H-61 Shepherd with Heavy Assault Cannon Performance ------------- Evolutions (2) 1000 Regions Visited (7) 1400 Robots Destroyed (102) 510 Value Destroyed (2304) 2304 Prototype IDs (28) 560 Alien Tech Used (0) 0 Bonus (513) 513 TOTAL SCORE: 6287 Bonus ------- High Alert Combat Kills 128 Follower Combat Kills 85 Aligned with FarCom 300 Cogmind --------- Core Integrity 0/550 Matter 300/300 Energy 27/100 System Corruption 0% Temperature Warm (157) Movement Core (200) Ox3 Location -8/Materials Parts ------- > --- POWER (1) -------- (None) > --- PROPULSION (4) --- (None) > --- UTILITY (4) ------ Lightpack 2.0 > --- WEAPON (2) ------- Assault Cannon > --- INVENTORY (40) --- Carbon-fiber Leg Improved Flight Unit Improved Heat Sink Cooling System Large Storage Unit Huge Storage Unit Cargo Storage Unit High-capacity Battery (250) High-capacity Matter Pod (200) Advanced Weight Redist. System Improved Terrain Scanner Seismic Detector Seismic Detector Targeting Computer Melee Analysis Suite Improved Utility Shielding Improved Utility Shielding Medium Armor Plating Hardened Medium Armor Plating Hardened Medium Armor Plating System Shield Tractor Beam Long-range Tractor Beam Improved EM Shotgun Improved Medium Laser Advanced Beam Rifle Autogun Improved Assault Rifle Improved Assault Rifle Improved Assault Rifle Improved Assault Rifle Assault Cannon Mini Grenade Launcher Heavy Hammer Heavy Flail Peak State ------------ > --- POWER ------------ Reinforced Ion Engine > --- PROPULSION ------- Cesium-ion Thruster Cesium-ion Thruster Cesium-ion Thruster Cesium-ion Thruster > --- UTILITY ---------- Lightpack 2.0 Hardened Medium Armor Plating > --- WEAPON ----------- Advanced Beam Rifle Shotgun > --- INVENTORY -------- Light Nuclear Core Armored Treads Carbon-fiber Leg Armored Wheel Improved Flight Unit Improved Heat Sink Cooling System Large Storage Unit Huge Storage Unit Cargo Storage Unit High-capacity Battery High-capacity Matter Pod Advanced Weight Redist. System Advanced Weight Redist. System Improved Terrain Scanner Seismic Detector Seismic Detector Targeting Computer Melee Analysis Suite Improved Utility Shielding Improved Utility Shielding Medium Armor Plating Hardened Medium Armor Plating System Shield Long-range Tractor Beam Long-range Tractor Beam Improved EM Shotgun Improved Medium Laser Improved Medium Laser Advanced Beam Rifle Autogun Improved Assault Rifle Improved Assault Rifle Improved Assault Rifle Improved Assault Rifle Mini Grenade Launcher Heavy Hammer Heavy Flail Great Maul [Rating: 62] Favorites ----------- Power Light Nuclear Core Engine Light Deuterium Engine Power Core Light Nuclear Core Propulsion Cesium-ion Thruster Treads Armored Treads Leg Aluminum Leg Wheel Wheel Flight Unit Cesium-ion Thruster Utility Targeting Computer Device Seismic Detector Storage Huge Storage Unit Processor Targeting Computer Protection Medium Armor Plating Weapon Improved Assault Rifle Energy Gun Small Laser Energy Cannon Beam Cannon Ballistic Gun Improved Assault Rifle Ballistic Cannon Improved Light Cannon Launcher Grenade Launcher Special Weapon Mining Laser Impact Weapon Great Maul Build | -11 -10 -10 -9 -9 -9 -8 -8 ------- Run | Yrd Mat Min Mat Min Exi Min Mat Slots Evolved 4 | . . . 2 . . . 2 Power . | . . . . . . . . Propulsion 2 | . . . . . . . 2 Utility 2 | . . . 2 . . . . Weapon . | . . . . . . . . Parts Attached 101 | 1 17 7 33 4 4 1 34 Power 9 | . 1 . 6 . . . 2 Engine 5 | . 1 . 3 . . . 1 Core 4 | . . . 3 . . . 1 Reactor . | . . . . . . . . Propulsion 23 | . 3 2 8 . . . 10 Treads 1 | . . . . . . . 1 Leg 1 | . . . . . . . 1 Wheel 13 | . 3 2 7 . . . 1 Hover . | . . . . . . . . Flight 8 | . . . 1 . . . 7 Utility 31 | 1 5 1 9 4 2 . 9 Device 10 | 1 1 . 1 2 . . 5 Storage 4 | . 3 . . . 1 . . Processor 3 | . . . 2 1 . . . Hackware . | . . . . . . . . Protection 14 | . 1 1 6 1 1 . 4 Artifact . | . . . . . . . . Weapon 38 | . 8 4 10 . 2 1 13 Energy Gun 5 | . 1 . 1 . . . 3 Energy Cannon 3 | . 2 1 . . . . . Ballistic Gun 17 | . 3 1 7 . 2 1 3 Ballistic Cannon 3 | . . . 1 . . . 2 Launcher 4 | . 1 2 1 . . . . Special Weapon 1 | . 1 . . . . . . Impact Weapon 5 | . . . . . . . 5 Slashing Weapon . | . . . . . . . . Piercing Weapon . | . . . . . . . . Special Melee Weapon . | . . . . . . . . Unidentified Prototypes 3 | . . . 3 . . . . Parts Lost 40 | . 5 4 13 . . 1 17 Power 5 | . . . 3 . . . 2 Propulsion 17 | . 2 2 4 . . . 9 Utility 10 | . 1 1 5 . . . 3 Weapon 8 | . 2 1 1 . . 1 3 Highest Loss Streak 15 | . 2 4 3 . . 1 15 To Critical Strikes . | . . . . . . . . Average Slot Usage (%) 89 | . 98 98 98 100 65 77 71 Engine 6 | . 14 14 7 . . . 5 Core 4 | . . . 3 11 11 11 3 Wheel 16 | . 22 26 21 22 22 22 . Flight 8 | . . . . . . . 34 Device 3 | . 9 . . 8 . . 3 Storage 11 | . 14 14 11 11 11 11 9 Processor 8 | . . . 15 24 11 . . Protection 9 | . 4 14 16 . 7 11 4 Energy Gun 1 | . 3 . 1 . . . 1 Energy Cannon 1 | . 4 17 . . . . . Ballistic Gun 13 | . 16 9 17 22 2 22 3 Impact Weapon 1 | . . . . . . . 6 Naked Turns . | . . . . . . . . Heaviest Build 99 | 14 94 94 99 98 91 23 28 Greatest Support 29 | 20 26 26 26 22 22 22 29 Greatest Overweight (x) 9 | . 3 4 9 4 4 1 4 Average Overweight (x) 2 | . . 3 3 4 . 1 . Largest Inventory Capacity 40 | 8 25 25 25 25 40 40 40 Average Capacity 27 | 8 14 25 25 25 34 40 40 Most Carried 40 | 8 25 25 25 25 26 30 40 Average Carried 24 | 6 11 22 24 25 25 28 34 Final Capacity 40 | 8 25 25 25 25 40 40 40 Final Carried 36 | 8 25 23 25 25 26 29 36 Class Distribution -------------------- 59% | Mutant 20% | Hauler-Sprinter 10% | Hauler-Mutant 8% | Scavenger-Mutant Dominant Class ---------------- Mutant | -10/Materials Mutant | -10/Mines Mutant | -9/Materials Mutant | -9/Mines Hauler-Mutant | -9/Exiles Hauler-Mutant | -8/Mines Hauler-Sprinter | -8/Materials Resources | -11 -10 -10 -9 -9 -9 -8 -8 ----------- Run | Yrd Mat Min Mat Min Exi Min Mat Matter Collected 2454 | 234 526 144 1022 63 . 70 395 Remotely 100 | . . . . . . . 100 Salvage Created 3537 | 80 654 56 1755 105 . 47 840 Parts 201 | 5 46 3 106 6 . 7 28 Haulers Intercepted 10 | . 2 . 6 . . . 2 Recyclers Shooed 4 | . . . 1 . . . 3 Parts Field Recycled . | . . . . . . . . Retrieved Matter . | . . . . . . . . Parts Self-Destructed . | . . . . . . . . Prevented . | . . . . . . . . Kills | -11 -10 -10 -9 -9 -9 -8 -8 ------- Run | Yrd Mat Min Mat Min Exi Min Mat Combat Hostiles Destroyed 71 | . 15 10 35 2 . 3 6 Guns 43 | . 7 . 26 2 . 3 5 Cannons 10 | . 2 3 5 . . . . AOE 17 | . 6 7 4 . . . . Classes Destroyed 15 | 2 6 2 3 1 . . 1 Worker 4 | . 2 . 1 . . . 1 Builder 7 | . 1 1 1 . . . 4 Tunneler 1 | 1 . . . . . . . Hauler 10 | . 2 . 6 . . . 2 Recycler 9 | 1 1 . 2 . . . 5 Watcher 8 | . 2 . 5 . . . 1 Swarmer 16 | . 6 . 7 . . 3 . Cutter 2 | . . . . . . . 2 Grunt 29 | . 9 . 16 1 . . 3 Brawler 1 | . . . . 1 . . . Duelist 1 | . . . 1 . . . . Protector 1 | . . . 1 . . . . Sentry 11 | . . . 10 . . . 1 Demolisher 2 | . . 2 . . . . . Assembled 8 | . . 8 . . . . . Best Kill Streak 9 | 2 9 8 7 2 . 3 7 Combat Bots Only 8 | . 6 8 7 2 . 3 3 Max Kills in Single Turn 4 | 1 4 3 2 1 . 1 1 Gunslinging . | . . . . . . . . Exploded 3 | . 2 3 2 . . . . Melee . | . . . . . . . . Uniques/NPCs Destroyed . | . . . . . . . . Combat | -11 -10 -10 -9 -9 -9 -8 -8 -------- Run | Yrd Mat Min Mat Min Exi Min Mat Hostile Shots Fired 460 | . 72 23 151 1 . 15 198 Missed 141 | . 19 4 47 . . 3 68 Damage Taken 5177 | . 712 567 1494 12 . 95 2297 Core 1032 | . 166 79 222 . . 8 557 Absorbed by Shields . | . . . . . . . . Redirected to Shielding 152 | . . 19 133 . . . . Regen/Repaired (Parts) 136 | . . . 70 . . . 66 Core Remaining (%) 48 | 100 . 2 . . . 42 . Volleys Fired 239 | 8 62 12 123 2 . 5 27 Largest 2 | 2 2 2 2 2 . 2 2 Hottest 120 | 60 120 120 84 46 . 46 88 Shots Fired 450 | 16 116 22 240 4 . 9 43 Gun 361 | 16 101 . 194 4 . 9 37 Cannon 72 | . 8 17 41 . . . 6 Launcher 16 | . 6 5 5 . . . . Special 1 | . 1 . . . . . . Kinetic 346 | 8 82 . 220 4 . 9 23 Thermal 87 | 8 28 17 14 . . . 20 Explosive 13 | . 6 2 5 . . . . Electromagnetic 4 | . . 3 1 . . . . Robot Hit Streak 22 | 4 11 12 22 14 . 20 5 Robot Miss Streak 5 | 2 4 2 4 . . 1 5 Penetration Max . | . . . . . . . . Secondary Targets 3 | . 2 . . . . 1 . Max Gunslinging Chain 1 | . 1 . . . . 1 . Shots Hit Robots 315 | 7 68 10 175 4 . 7 44 Core Hits 162 | 3 38 20 77 4 . 3 17 Critical Kills 2 | . 1 . . . . . 1 Critical Parts Destroyed 7 | . . . 2 . . . 5 Critical Strikes 12 | . 1 . 3 . . . 8 Burn 2 | . . . . . . . 2 Destroy 3 | . 1 . 2 . . . . Blast 1 | . . . 1 . . . . Smash 6 | . . . . . . . 6 Melee Attacks 58 | . . . . . . . 58 Impact 58 | . . . . . . . 58 Slashing . | . . . . . . . . Piercing . | . . . . . . . . Sneak Attacks 11 | . . . . . . . 11 Combat Hostiles . | . . . . . . . . Follow-up Attacks . | . . . . . . . . Damage Inflicted 7427 | 86 1153 605 3351 61 . 104 2067 Guns 3359 | 86 617 . 2080 61 . 104 411 Cannons 973 | . 104 142 600 . . . 127 Explosions 1566 | . 432 463 671 . . . . Melee 1529 | . . . . . . . 1529 Ramming . | . . . . . . . . Kinetic 3437 | 40 488 . 2470 61 . 104 274 Thermal 877 | 46 233 142 192 . . . 264 Explosive 1452 | . 432 349 671 . . . . Electromagnetic 132 | . . 114 18 . . . . Impact 1529 | . . . . . . . 1529 Slashing . | . . . . . . . . Piercing . | . . . . . . . . Highest Corruption 5 | . . . 5 5 5 5 . Average Corruption 5 | . . . 5 5 5 5 . Corruption Purged . | . . . . . . . . Corruption Blocked . | . . . . . . . . Effects 87 | . . . 50 17 13 7 . Message Errors 26 | . . . 16 4 4 2 . Matter Fused 11 | . . . 5 3 3 . . Heat Flow Errors 11 | . . . 4 3 2 2 . Energy Discharges 13 | . . . 8 3 2 . . Parts Fused 2 | . . . 1 1 . . . Data Loss (minor) 15 | . . . 9 1 2 3 . Data Loss (major) 2 | . . . 1 1 . . . Misfires 3 | . . . 3 . . . . Alerts 2 | . . . 1 1 . . . Weapon Failures 2 | . . . 2 . . . . Overload Shots . | . . . . . . . . Overflow Damage 742 | . . 6 17 . . . 719 Projectiles 17 | . . . 17 . . . . Explosions 6 | . . 6 . . . . . Melee 719 | . . . . . . . 719 Knockbacks 8 | . . . 3 . . . 5 Impact 4 | . . . . . . . 4 Kinetic 3 | . . . 3 . . . . Secondary 1 | . . . . . . . 1 Self-Inflicted Damage 82 | . 53 29 . . . . . Shots 4 | . 2 2 . . . . . Rammed . | . . . . . . . . Targets Rammed . | . . . . . . . . Kicked . | . . . . . . . . Crushed . | . . . . . . . . Highest Temperature 333 | 20 222 316 221 234 242 237 333 Average Temperature 83 | 20 85 177 40 112 120 102 92 Received Heat Transfer 1773 | . 318 . 477 6 . . 972 Effects 3 | . 1 2 . . . . . Energy Bleed 1 | . 1 . . . . . . Interference 2 | . . 2 . . . . . Siege Activations . | . . . . . . . . Robots Corrupted . | . . . . . . . . Combat Hostiles . | . . . . . . . . Parts Fried 12 | . . . . . . . 12 Impact Corruptions 20 | . . . . . . . 20 Robots Melted . | . . . . . . . . Combat Hostiles . | . . . . . . . . Parts Melted 2 | 1 . . 1 . . . . Heat Transferred 1954 | 100 522 296 407 . . . 629 Parts Sabotaged . | . . . . . . . . Parts Stolen . | . . . . . . . . Parts Stripped . | . . . . . . . . Power Chain Reactions . | . . . . . . . . Alert | -11 -10 -10 -9 -9 -9 -8 -8 ------- Run | Yrd Mat Min Mat Min Exi Min Mat Peak Influence 582 | 10 294 108 582 235 . 60 165 Initial 185 | . 6 79 41 185 . . 23 Average 206 | 5 155 101 367 144 . 22 63 Maximum Alert Level 2 | . 1 . 2 1 . . . Low Security (%) 58 | 100 67 100 20 56 . 100 100 Level 1 19 | . 32 . 23 43 . . . Level 2 21 | . . . 55 . . . . Level 3 . | . . . . . . . . Level 4 . | . . . . . . . . Level 5 . | . . . . . . . . High Security . | . . . . . . . . Max Security . | . . . . . . . . Squads Dispatched 10 | . 2 . 4 . . . 4 Investigation 3 | . . . 2 . . . 1 Extermination . | . . . . . . . . Reinforcement 6 | . 2 . 1 . . . 3 Assault 1 | . . . 1 . . . . Garrison . | . . . . . . . . Intercept . | . . . . . . . . Searches Triggered . | . . . . . . . . Construction Impeded . | . . . . . . . . Haulers Reinforced . | . . . . . . . . Active Scanning Responses . | . . . . . . . . Cargo Convoy Interrupts . | . . . . . . . . Stealth | -11 -10 -10 -9 -9 -9 -8 -8 --------- Run | Yrd Mat Min Mat Min Exi Min Mat Distress Signals 8 | . 3 . 2 . . . 3 Communications Jammed . | . . . . . . . . Distress Signals . | . . . . . . . . Times Spotted 109 | . 24 10 45 2 . 3 25 Peak Tracking Total 11 | . 4 8 5 2 . 3 11 Tactical Retreats 3 | . 2 . . . . . 1 Traps | -11 -10 -10 -9 -9 -9 -8 -8 ------- Run | Yrd Mat Min Mat Min Exi Min Mat Traps Triggered 2 | . . . 1 . . . 1 Indirectly . | . . . . . . . . Trap Hack Attempts . | . . . . . . . . Triggered . | . . . . . . . . Disarmed . | . . . . . . . . Reprogrammed . | . . . . . . . . Reused . | . . . . . . . . Traps Extracted . | . . . . . . . . Installed . | . . . . . . . . Triggered . | . . . . . . . . Machines | -11 -10 -10 -9 -9 -9 -8 -8 ---------- Run | Yrd Mat Min Mat Min Exi Min Mat Machines Disabled 8 | . 5 . . . . . 3 Max in Single Turn 1 | . 1 . . . . . 1 Machines Repaired . | . . . . . . . . Machines Dismantled . | . . . . . . . . Machines Sabotaged . | . . . . . . . . Overloaded Fab Kills . | . . . . . . . . Hacking | -11 -10 -10 -9 -9 -9 -8 -8 --------- Run | Yrd Mat Min Mat Min Exi Min Mat Machines Accessed 20 | . 5 . 9 . 1 . 5 Terminals 15 | . 5 . 8 . . . 2 Fabricators . | . . . . . . . . Repair Stations 2 | . . . 1 . . . 1 Recycling Units . | . . . . . . . . Scanalyzers 1 | . . . . . . . 1 Garrison Access 1 | . . . . . . . 1 Total Hacks 58 | . 15 . 27 . 1 . 15 Successful 33 | . 7 . 16 . 1 . 9 Failed 25 | . 8 . 11 . . . 6 Catastrophic 2 | . 1 . . . . . 1 Database Lockouts . | . . . . . . . . Manual 41 | . 12 . 22 . 1 . 6 Terminals 44 | . 15 . 23 . . . 6 Fabricators . | . . . . . . . . Repair Stations 7 | . . . 4 . . . 3 Recycling Units . | . . . . . . . . Scanalyzers 4 | . . . . . . . 4 Garrison Access 2 | . . . . . . . 2 Terminal Hacks 10 | . 2 . 5 . 1 . 2 Robot Analysis 2 | . . . 1 . . . 1 Prototype ID Bank 1 | . . . 1 . . . . Terminal Index 3 | . 1 . 1 . . . 1 Locate Traps 1 | . 1 . . . . . . Zone Layout 2 | . . . 2 . . . . Derelict Proto ID Bank 1 | . . . . . 1 . . Fabricator Hacks . | . . . . . . . . Repair Station Hacks 6 | . . . 4 . . . 2 Scan Component 3 | . . . 2 . . . 1 Repair 3 | . . . 2 . . . 1 Recycling Unit Hacks . | . . . . . . . . Scanalyzer 4 | . . . . . . . 4 Insert Component 2 | . . . . . . . 2 Analyze 2 | . . . . . . . 2 Garrison Access Hacks . | . . . . . . . . Unauthorized Hacks 13 | . 5 . 7 . . . 1 Terminals 13 | . 5 . 7 . . . 1 Track 1 | . . . 1 . . . . Botnet 9 | . 4 . 4 . . . 1 Disrupt 1 | . . . 1 . . . . Operators 2 | . 1 . 1 . . . . Fabricators . | . . . . . . . . Repair Stations . | . . . . . . . . Recycling Units . | . . . . . . . . Scanalyzers . | . . . . . . . . Garrison Access . | . . . . . . . . Data Cores Recovered . | . . . . . . . . Used . | . . . . . . . . Hacking Detections 16 | . 4 . 7 . . . 5 Full Trace Events 3 | . 1 . 1 . . . 1 Feedback Events . | . . . . . . . . Feedback Blocked . | . . . . . . . . Robot Schematics Acquired . | . . . . . . . . Robots Built . | . . . . . . . . Authchips . | . . . . . . . . Time . | . . . . . . . . Total Robot Build Rating . | . . . . . . . . Part Schematics Acquired 2 | . . . . . . . 2 Parts Built . | . . . . . . . . Authchips . | . . . . . . . . Time . | . . . . . . . . Total Part Build Rating . | . . . . . . . . Parts Repaired 3 | . . . 2 . . . 1 Time 84 | . . . 52 . . . 32 Parts Recycled . | . . . . . . . . Recycled Matter . | . . . . . . . . Retrieved Matter . | . . . . . . . . Retrieved Components . | . . . . . . . . Parts Scanalyzed 2 | . . . . . . . 2 Part Schematics Acquired 2 | . . . . . . . 2 Parts Damaged . | . . . . . . . . Bothacking | -11 -10 -10 -9 -9 -9 -8 -8 ------------ Run | Yrd Mat Min Mat Min Exi Min Mat Used RIF Installer . | . . . . . . . . Robots Hacked . | . . . . . . . . Non-combat . | . . . . . . . . Combat . | . . . . . . . . Robot Hacks Applied . | . . . . . . . . Relay Couplers Released . | . . . . . . . . Fabnet Peak Effective % . | . . . . . . . . Robots Rewired . | . . . . . . . . Allies Hacked . | . . . . . . . . Hacks Repelled . | . . . . . . . . Allies | -11 -10 -10 -9 -9 -9 -8 -8 -------- Run | Yrd Mat Min Mat Min Exi Min Mat Total Allies 1 | . . 1 . . . . . Largest Group 1 | . . 1 1 . . . . Highest-Rated Group 16 | . . 16 16 . . . . Highest-Rated Ally 16 | . . 16 16 . . . . Total Orders . | . . . . . . . . Ally Attacks 6 | . . . 6 . . . . Total Damage 94 | . . . 94 . . . . Kills 3 | . . . 3 . . . . Allies Corrupted . | . . . . . . . . Allies Melted . | . . . . . . . . Intel | -11 -10 -10 -9 -9 -9 -8 -8 ------- Run | Yrd Mat Min Mat Min Exi Min Mat Robot Analysis Total 2 | . . . 1 . . . 1 Derelict Logs Recovered 1 | . . . . 1 . . . Drone Launches . | . . . . . . . . Drone Recoveries . | . . . . . . . . Exploration | -11 -10 -10 -9 -9 -9 -8 -8 ------------- Run | Yrd Mat Min Mat Min Exi Min Mat Turns Passed 7182 | 39 1147 192 2673 682 436 281 1732 Spaces Moved 4549 | 10 735 101 1397 457 435 245 1169 Core 1 | . . . . . . . 1 Treads . | . . . . . . . . Legs 105 | 10 95 . . . . . . Wheels 3301 | . 640 101 1397 457 435 245 26 Hover . | . . . . . . . . Flight 1142 | . . . . . . . 1142 Fastest Speed 26 | 120 90 135 135 145 85 100 26 Average Speed 102 | 120 108 139 144 145 98 100 29 Slowest Speed 250 | 120 190 140 215 145 145 100 250 Overloaded Moves . | . . . . . . . . Propulsion Burnouts . | . . . . . . . . Robots Hopped . | . . . . . . . . Cave-ins Triggered . | . . . . . . . . Exploration Rate (%) 62 | 2 87 21 97 94 84 48 70 Regions Visited 7 Branch Regions 4 Pre-discovered Areas 1 | . . . . 1 . . . Known Exits Taken 2 | . . . . 1 . 1 . Unknown Exits Taken 5 | 1 1 1 1 . 1 . . Scrap Searched 3 | . . 1 . 1 . 1 . Spaces Dug 31 | . 1 . . . . . 30 Terrain Destroyed 95 | . 15 17 32 . . . 31 Melee 30 | . . . . . . . 30 Projectile 2 | . 1 . . . . . 1 AOE 63 | . 14 17 32 . . . . Terrain Rammed . | . . . . . . . . Walls Destroyed . | . . . . . . . . Machines Disabled . | . . . . . . . . Actions | -11 -10 -10 -9 -9 -9 -8 -8 --------- Run | Yrd Mat Min Mat Min Exi Min Mat Total 6559 | 20 976 129 1836 472 445 272 2409 Wait 1442 | . 124 6 202 8 . 18 1084 Move 4542 | 9 734 100 1396 456 434 244 1169 Hop . | . . . . . . . . Pick Up 108 | 2 28 3 44 1 1 4 25 Fast Attach 21 | 1 1 . 8 . 3 . 8 Attach 38 | . 4 4 14 . 1 1 14 Detach 7 | . . . . . 1 . 6 Swap 42 | . 12 3 11 4 . . 12 Drop 62 | . 11 1 38 1 5 . 6 Fire 239 | 8 62 12 123 2 . 5 27 Melee 58 | . . . . . . . 58 Ram . | . . . . . . . . Kick . | . . . . . . . . Crush . | . . . . . . . . Escape Stasis . | . . . . . . . . Rewire . | . . . . . . . . Trap . | . . . . . . . . Miscellaneous . | . . . . . . . . Route ------- -11/Scrapyard -10/Materials (discovered 4 exits: *Mat x2 / [*Min x2]) -10/Mines -9/Materials (discovered 5 exits: *Mat x3 / [*Min x2]) -9/Mines (discovered 4 exits: *Mat x2 / *Exi / *Zio) -9/Exiles -8/Mines -8/Materials (discovered 1 exit: [*Fac]) History --------- Turn | Location | Event 17 | -11/Scrapyard | Discovered new exit (range 3) 40 | -11/Scrapyard | Entered Materials 346 | -10/Materials | Build established: Mutant 586 | -10/Materials | Discovered new exit (range 16) 696 | -10/Materials | Discovered new exit (range 10) 741 | -10/Materials | Discovered new exit (range 16) 821 | -10/Materials | Core integrity fell below 50% 951 | -10/Materials | Discovered new exit (range 7) 1187 | -10/Materials | Entered Mines 1188 | -10/Mines | Assembled infested the area 1211 | -10/Mines | Core integrity fell below 20% 1235 | -10/Mines | Destroyed 8 combat bots 1268 | -10/Mines | Lost 4 parts (2n1u1w) 1285 | -10/Mines | Assisted by bots powering up and referring to "LRC-V3" 1365 | -10/Mines | Discovered new exit (range 10) 1379 | -10/Mines | Entered Materials 1379 | -9/Materials | Accompanied by 1 ally 1379 | -9/Materials | Evolved 2 slots: Utility x2 1396 | -9/Materials | Discovered new exit (range 16) 1717 | -9/Materials | Discovered new exit (range 8) 1875 | -9/Materials | Repaired Wheel 1902 | -9/Materials | Repaired Wheel 2065 | -9/Materials | Discovered new exit (range 16) 2296 | -9/Materials | Destroyed 7 combat bots 2941 | -9/Materials | Lost 3 parts (1n2u) 2959 | -9/Materials | Discovered new exit (range 16) 2979 | -9/Materials | First assault squad dispatched 3264 | -9/Materials | Core integrity fell below 50% 3501 | -9/Materials | Discovered new exit (range 15) 4052 | -9/Materials | Entered Mines 4090 | -9/Mines | Met a Derelict bent on vengeance 4117 | -9/Mines | Discovered new exit (range 4) 4585 | -9/Mines | Discovered new exit (range 3) 4600 | -9/Mines | A Derelict revealed a hidden shortcut to a safe place 4610 | -9/Mines | Identified exit to Zion 4630 | -9/Mines | Identified exit to Materials 4728 | -9/Mines | Deemed a non-threat by the Exiles lab entrance 4728 | -9/Mines | Discovered new exit (range 5) 4733 | -9/Mines | Identified exit to Exiles 4734 | -9/Mines | Entered Exiles 4768 | -9/Exiles | Met 8R-AWN 4794 | -9/Exiles | Met EX-HEX 4833 | -9/Exiles | Met EX-BIN 4847 | -9/Exiles | Aligned with FarCom system 4848 | -9/Exiles | Given EX-Vault access code 4878 | -9/Exiles | Opened EX-Vault 4889 | -9/Exiles | Found Lightpack 2.0 4910 | -9/Exiles | Warned to stay clear of 0b10 Research branches 4940 | -9/Exiles | Met EX-DEC 5005 | -9/Exiles | Visited The Gauntlet 5158 | -9/Exiles | Discovered new exit (range 14) 5170 | -9/Exiles | Left Exiles lab with Lightpack 2.0 5170 | -9/Exiles | Entered Mines 5192 | -8/Mines | Build established: Hauler-Mutant 5383 | -8/Mines | Discovered exit to Materials (range 10) 5451 | -8/Mines | Entered Materials 5451 | -8/Materials | Evolved 2 slots: Propulsion x2 5769 | -8/Materials | Build established: Hauler-Sprinter 6590 | -8/Materials | Repaired Med. Armor Plating 7138 | -8/Materials | Discovered new exit (range 16) 7160 | -8/Materials | Core integrity fell below 50% 7172 | -8/Materials | Core integrity fell below 20% 7183 | -8/Materials | Destroyed by H-61 Shepherd with Heavy Assault Cannon Last Messages --------------- 07171_ Critical hit (Burn: +37). 07171_ Acquired Tractor Beam. 07173_ Critical hit (Burn: +37). 07173_ U-05 Engineer builds a Wall. 07175_ Y-45 Defender destroyed. 07176_ Acquired 8 matter. 07176_ Acquired 56 matter. 07176_ Acquired 16 matter. 07177_ Acquired 10 matter. 07177_ H-61 Shepherd calls for reinforcements. 07177_ ALERT: Hostile activity reported, dispatching reinforcements to area. 07177_ U-05 Engineer builds a Wall. 07178_ Critical hit (Burn: +37). 07180_ Acquired 4 matter. 07180_ Acquired 2 matter. 07180_ M-13 Machinist repairs Y-45 Defender. 07182_ Lrn. Tractor Beam destroyed. 07182_ Assault Cannon destroyed. 07182_ U-05 Engineer builds a Wall. 07183_ Arm. Treads destroyed. Map ----- +----------------------------------------------------+ | | | | | | | | | | | | | | | ?????????????????????????????????????????????????? | | ?????????????????????????????????????????????????? | | ?????????????????????????????????????????????????? | | ?????????????????????????????????????????????????? | | ?????????????????????????????????????????????????? | | ?????????????????????????????????????????????????? | | ???????????????????????????????##???????#########? | | ?????????????????????????###### ####????# ! | | ?????????????####+######## # ;########?# | | ?????????????# g u #?# | | ?????????????# < gg %/ ##???# """ | | ?????????????# w ! * #???# """ """ | | ?????????????????+####### %; %=% ##???# "T """ | | ???????????????????????#; m=!=# ##???# """ | | ???????????????????????##gYgH!Y# ##?### | | ???????????????????????## gg Y ##########+#### | | ???????????????????????# /% # | | ???????????????????????##[/ # | | ????????????????????????#@ # | | ????????????????????????######## ############### | | ????????????????????????######## #?????????????? | | ????????????????????????# = # #?????????????? | | ????????????????????????# + ############### | | ????????????????????????# """ # | | ????????????????????????# """ # *[= | | ????????????????????????# """?# =%* | | ????????????????????????# ?# ##########/#### | | ?????????????????????????####??# #????# !%!%* | | ???????????????????????????????# #????# !=[! ! | | ???????????????????????????????# #????# = | | ######?????????????????????????# #????# | | #?????????????????????????# #????# """ | | [ #########?????????????????# #????# """ !!! | | " " ## !#?????????????????# #????# """ !!! | | %"R" ## ] !#?????????????????# #????# !! | | [""" ## #?????????????????# #????########## | | [! ## #?????????????????# #?????????????? | | ##+#### = #?????????????????# #?????????????? | | ?# + ! !#?????????????????# ??????????????? | | ?# ########?????????????????? #?????????????? | | ?# #??????????????????????????? ############## | | ?# #??????????????????????????? | | ?# ##+#####?##???????????????????? | +----------------------------------------------------+ Best States ------------- Heat Dissipation 45 Energy Generation 14 Energy Capacity 265 Matter Stores 300 Matter Capacity 300 Sight Range 16 Terrain Scan Density 10 Additional Mass Support 9 Armor Coverage 225 Weapon Shielding 33 Evasion (%) 64 Targeting Accuracy 10 Recoil Reduction 1 Item Schematics ----------------- Adv. Beam Rifle | -8/Materials | Scanalyzed Seismic Detector | -8/Materials | Scanalyzed Robot Schematics ------------------ None Fabricated ------------ Nothing Alien Tech Used ----------------- None Achievements -------------- None Challenges ------------ None Game ------ Seed AdvancedCloakFrame Manual? 0 Play Time 02:00:35 Cumulative 177.5 hours Start 2024.05.20 @ 12:16:51 End 2024.05.22 @ 17:26:19 Sessions 4 Manual Loads 0 Difficulty Rogue Special Mode None Game No. 146 Rogue 140 Adventurer 0 Explorer 6 Win Type - Total 4 Types 4/0/0/0/0/0/0/0/0 Lore% 44 Gallery% 59 Achievement% 48 Wizard Run 0 Options --------- Layout 0 ASCII 0 Keyboard 0 Movement Numpad Keybinds 0 Fullscreen 2 Font 24/Smallcaps Map View 113x50 Zoom Use 0% Tactical HUD 1 Map Filters NONE Filters NONE Steam 1 RUN: b777c946-f209-46fe-b45f-e7f8d80f9bf4